bitfinex/quotes_BTCUSD_20220105
["timestamp","ask_amount","ask_price","bid_price","bid_amount"]
[1641397379690,0.053757,46511.0,46508.0,1.24586145]
[1641397380491,0.053757,46511.0,46508.0,1.25486145]
[1641397381490,0.053757,46511.0,46509.0,6.82e-05]
[1641397381894,0.053757,46511.0,46509.0,0.19681628]
[1641397382094,0.053757,46511.0,46510.0,0.356377]
[1641397382292,0.053757,46511.0,46510.0,1.68532358]
[1641397383641,0.08062052,46512.0,46510.0,1.68532358]
[1641397383841,0.08062052,46512.0,46511.0,1.32233695]
[1641397384044,0.02686852,46512.0,46511.0,1.47848045]
[1641397384342,0.02573455,46512.0,46511.0,1.47848045]
[1641397384545,0.02573455,46512.0,46511.0,1.48948045]
[1641397385543,0.02573455,46512.0,46511.0,1.68948045]
[1641397385747,0.02573455,46512.0,46511.0,1.72148045]
[1641397385943,0.02573455,46512.0,46511.0,2.36648045]
[1641397386543,0.02573455,46512.0,46511.0,2.38448045]
[1641397387693,0.02573455,46512.0,46511.0,2.36648045]
[1641397388490,0.02573455,46512.0,46511.0,2.38248045]
[1641397389696,0.02573455,46512.0,46511.0,2.36648045]
[1641397390491,0.02573455,46512.0,46511.0,2.40548045]
[1641397391743,0.02573455,46512.0,46511.0,2.36648045]
[1641397392144,0.02573455,46512.0,46511.0,2.36654739]
[1641397392544,0.02573455,46512.0,46511.0,2.40754739]
[1641397393649,0.02573455,46512.0,46511.0,2.36654739]
[1641397394448,0.02573455,46512.0,46511.0,2.38554739]
[1641397394691,0.02573455,46512.0,46511.0,2.34254739]
[1641397395393,0.02573455,46512.0,46511.0,2.51090739]
[1641397395592,0.00113012,46514.0,46513.0,1.01]
[1641397395791,0.00113012,46514.0,46513.0,3.18842054]
[1641397395991,0.00113012,46514.0,46513.0,3.38842054]
[1641397396191,0.00113012,46514.0,46513.0,2.57842054]
[1641397396391,0.00113012,46514.0,46513.0,2.57378054]
[1641397397191,0.00113012,46514.0,46513.0,2.62378054]
[1641397397495,0.00113012,46514.0,46513.0,2.52378054]
[1641397397694,0.00113012,46514.0,46513.0,2.42719345]
[1641397398443,0.00113012,46514.0,46513.0,2.47119345]
[1641397399444,0.07031522,46519.0,46513.0,2.47119345]
[1641397399645,0.01657022,46519.0,46518.0,1.32210345]
[1641397399844,0.01657022,46519.0,46518.0,1.67848045]
[1641397400046,0.01657022,46519.0,46518.0,1.72848045]
[1641397400244,0.004,46519.0,46518.0,1.72848045]
[1641397400446,0.004,46519.0,46518.0,1.74248045]
[1641397401447,0.004,46519.0,46518.0,0.370377]
[1641397401647,0.004,46519.0,46518.0,0.014]
[1641397401945,0.004,46519.0,46514.0,1.135]
[1641397402190,0.004,46519.0,46516.0,1.135]
[1641397402391,0.00513027,46519.0,46517.0,0.556377]
[1641397402693,0.00513027,46519.0,46518.0,1.135]
[1641397402890,0.00513027,46519.0,46518.0,1.545122]
[1641397403089,0.00513027,46519.0,46518.0,1.54518264]
[1641397403890,0.05887527,46519.0,46518.0,1.54518264]
[1641397404490,0.05887527,46519.0,46518.0,1.55218264]
[1641397404890,0.05887527,46519.0,46518.0,1.60218264]
[1641397405492,0.00513027,46519.0,46518.0,1.60218264]
[1641397405693,0.00513027,46519.0,46518.0,1.79018264]
[1641397405951,0.00513027,46519.0,46518.0,1.84018264]
[1641397406555,0.004,46529.0,46518.0,1.84018264]
[1641397406556,0.004,46529.0,46518.0,1.90618264]
[1641397406755,0.004,46529.0,46523.0,2.793725]
[1641397406953,0.004,46529.0,46523.0,3.19437188]
[1641397407156,0.004,46539.0,46528.0,0.2]
[1641397407354,0.004,46539.0,46533.0,0.00123924]
[1641397407554,0.057723,46539.0,46534.0,0.2]
[1641397407754,0.004,46539.0,46536.0,1.383718]
[1641397407959,0.004,46539.0,46538.0,1.26]
[1641397408154,0.004,46539.0,46538.0,1.66873523]
[1641397408454,0.01925526,46542.0,46540.0,0.2]
[1641397408653,0.01925526,46542.0,46541.0,0.556377]
[1641397408854,0.01925526,46542.0,46541.0,1.740088]
[1641397410097,0.01925526,46542.0,46541.0,1.745088]
[1641397410295,0.01925526,46542.0,46541.0,0.610088]
[1641397410500,0.01925526,46542.0,46541.0,0.426088]
[1641397410696,0.00110694,46544.0,46542.0,1.41]
[1641397410899,6.94e-06,46544.0,46543.0,0.63149006]
[1641397411095,6.94e-06,46544.0,46543.0,1.05592788]
[1641397411296,6.94e-06,46544.0,46543.0,2.19092788]
[1641397411497,6.94e-06,46544.0,46543.0,1.05592788]
[1641397411698,6.94e-06,46544.0,46543.0,0.64457]
[1641397412597,0.25292985,46544.0,46543.0,0.69457]
[1641397412994,0.25292985,46544.0,46543.0,0.69339306]
[1641397413197,0.46030085,46544.0,46543.0,0.69339306]
[1641397413653,0.56066622,46544.0,46543.0,0.69339306]
[1641397413950,0.00037231,46544.0,46543.0,0.8626194]
[1641397414149,0.00037231,46544.0,46543.0,0.64339306]
[1641397414348,0.00036537,46544.0,46543.0,0.64339306]
[1641397414547,0.00036537,46544.0,46543.0,0.65839306]
[1641397414751,0.00036537,46544.0,46543.0,1.01477006]
[1641397414949,0.26925827,46544.0,46543.0,0.65839306]
[1641397415753,0.26925827,46544.0,46543.0,0.64339306]
[1641397416550,0.26925827,46544.0,46543.0,0.69539306]
[1641397416753,0.56029502,46544.0,46543.0,0.69539306]
[1641397416950,1.78066602,46544.0,46543.0,0.69539306]
[1641397417199,0.81962927,46544.0,46543.0,0.69539306]
[1641397417399,0.71962927,46544.0,46543.0,0.69539306]
[1641397417799,1.25962927,46544.0,46543.0,0.64339306]
[1641397418403,0.71962927,46544.0,46543.0,0.64339306]
[1641397418600,1.43985816,46544.0,46543.0,0.64339306]
[1641397419800,1.37785816,46544.0,46543.0,0.64339306]
[1641397420498,1.39185816,46544.0,46543.0,0.64339306]
[1641397420702,0.53362927,46544.0,46543.0,0.64339306]
[1641397421742,0.51962927,46544.0,46543.0,0.64339306]
[1641397422146,1.2032197,46544.0,46543.0,0.64339306]
[1641397422544,1.2102197,46544.0,46543.0,0.64839306]
[1641397422844,0.62662927,46544.0,46543.0,0.64839306]
[1641397423845,1.2032197,46544.0,46543.0,0.64339306]
[1641397424043,1.1032197,46544.0,46543.0,0.64339306]
[1641397424693,0.54162927,46544.0,46543.0,0.64939306]
[1641397425294,0.64162927,46544.0,46543.0,0.64939306]
[1641397425496,0.69162927,46544.0,46543.0,0.63624757]
[1641397425696,0.54162927,46544.0,46543.0,0.63624757]
[1641397426001,0.61962927,46544.0,46543.0,0.63024757]
[1641397426496,0.64062927,46544.0,46543.0,0.63624757]
[1641397426696,0.27173637,46544.0,46543.0,0.63624757]
[1641397426897,0.06436537,46544.0,46543.0,0.63624757]
[1641397427796,0.06436537,46544.0,46543.0,0.63024757]
[1641397427797,0.04336537,46544.0,46543.0,0.63024757]
[1641397428443,0.00036537,46544.0,46543.0,0.82479815]
[1641397428648,0.00036537,46544.0,46543.0,0.83880648]
[1641397429040,0.00036537,46544.0,46543.0,1.19518348]
[1641397429643,0.00036537,46544.0,46543.0,1.00062457]
[1641397429944,0.00036537,46544.0,46543.0,2.32162457]
[1641397430547,0.00036537,46544.0,46543.0,2.38762457]
[1641397431046,0.00036537,46544.0,46543.0,2.56298457]
[1641397431444,0.00036537,46544.0,46543.0,2.41298457]
[1641397431646,0.00036537,46544.0,46543.0,2.33762457]
[1641397431844,0.00036537,46544.0,46543.0,2.32162457]
[1641397432489,0.00107733,46546.0,46545.0,1.135]
[1641397432690,0.00107733,46546.0,46545.0,2.203948]
[1641397433089,0.00107733,46546.0,46545.0,1.068948]
[1641397433289,0.00107733,46546.0,46545.0,2.203948]
[1641397434089,0.00107733,46546.0,46545.0,1.058948]
[1641397434492,0.00107724,46548.0,46546.0,0.05]
[1641397434690,0.00107724,46548.0,46547.0,0.46380003]
[1641397435693,0.00107724,46548.0,46547.0,1.59880003]
[1641397436543,0.00107724,46548.0,46547.0,1.65180003]
[1641397437741,0.00107724,46548.0,46547.0,1.59880003]
[1641397437944,0.00107724,46548.0,46547.0,1.79880003]
[1641397438643,0.00107724,46548.0,46547.0,1.83380003]
[1641397439443,0.004,46549.0,46547.0,1.83380003]
[1641397439897,0.004,46549.0,46547.0,1.79880003]
[1641397440094,0.004,46549.0,46547.0,1.81880003]
[1641397440694,0.004,46549.0,46547.0,1.88580003]
[1641397440695,0.00374141,46549.0,46547.0,1.88580003]
[1641397440896,0.04745041,46553.0,46547.0,1.88580003]
[1641397441095,0.26916024,46556.0,46547.0,1.88580003]
[1641397441096,0.26916024,46556.0,46550.0,0.05371]
[1641397441496,0.37658624,46556.0,46547.0,0.087]
[1641397441700,0.26916024,46556.0,46547.0,1.222]
[1641397441894,0.26916024,46556.0,46547.0,1.155]
[1641397442094,0.053715,46553.0,46547.0,1.155]
[1641397442294,0.053715,46553.0,46547.0,0.02]
[1641397442494,0.053715,46553.0,46548.0,0.053712]
[1641397443094,0.053715,46553.0,46547.0,0.085]
[1641397443849,0.053715,46553.0,46547.0,0.02]
[1641397444449,0.053715,46551.0,46547.0,0.02]
[1641397444650,0.053714,46550.0,46547.0,0.091]
[1641397445248,0.053714,46550.0,46548.0,6.867e-05]
[1641397445849,0.161151,46550.0,46548.0,6.867e-05]
[1641397446548,0.161151,46550.0,46548.0,0.04106867]
[1641397447212,0.40037537,46549.0,46548.0,0.04106867]
[1641397447412,0.59337537,46549.0,46548.0,0.04106867]
[1641397447613,0.827394,46548.0,46545.0,0.65886]
[1641397447813,1.03241512,46546.0,46545.0,0.65886]
[1641397448112,1.34280912,46546.0,46545.0,0.229005]
[1641397448314,1.3,46545.0,46540.0,0.01261695]
[1641397448519,2.170394,46541.0,46540.0,0.01261695]
[1641397448714,2.170394,46541.0,46518.0,0.2999]
[1641397448715,0.214989,46535.0,46518.0,0.2999]
[1641397448913,0.053749,46527.0,46518.0,0.2999]
[1641397449112,0.043,46526.0,46518.0,0.2999]
[1641397449312,0.107497,46524.0,46518.0,0.2999]
[1641397449516,0.04837567,46523.0,46518.0,0.353645]
[1641397450712,0.04837567,46523.0,46518.0,0.406645]
[1641397450945,0.053745,46522.0,46518.0,0.606645]
[1641397451143,0.053743,46521.0,46518.0,0.606645]
[1641397451346,0.053745,46522.0,46518.0,0.406645]
[1641397451944,0.053745,46522.0,46518.0,0.60738773]
[1641397452149,0.053745,46522.0,46519.0,0.053741]
[1641397452543,0.053745,46522.0,46519.0,0.071741]
[1641397452544,0.107487,46522.0,46519.0,0.071741]
[1641397453147,0.053745,46522.0,46519.0,0.271741]
[1641397453947,0.053745,46522.0,46520.0,1.135]
[1641397454345,0.053745,46522.0,46521.0,1.491227]
[1641397455692,0.053745,46522.0,46521.0,1.691227]
[1641397455895,0.053745,46522.0,46521.0,1.69131209]
[1641397456793,0.053745,46522.0,46521.0,1.70531209]
[1641397458095,0.053745,46522.0,46521.0,1.69131209]
[1641397458745,0.053745,46522.0,46521.0,1.70531209]
[1641397459948,0.053745,46522.0,46521.0,1.69131209]
[1641397460747,0.053745,46522.0,46521.0,1.70531209]
[1641397461949,0.053745,46522.0,46521.0,1.69131209]
[1641397462600,0.053745,46522.0,46521.0,1.70431209]
[1641397463897,0.053745,46522.0,46521.0,1.69131209]
[1641397464695,0.053745,46522.0,46521.0,1.70431209]
[1641397466146,0.107473,46526.0,46521.0,1.70431209]
[1641397466348,0.053733,46524.0,46522.0,1.335]
[1641397466547,0.053733,46524.0,46523.0,1.691227]
[1641397468750,0.053733,46524.0,46523.0,1.704227]
[1641397469595,0.00107669,46526.0,46523.0,1.704227]
[1641397469798,0.00107669,46526.0,46525.0,2.185]
[1641397469995,0.00107669,46526.0,46525.0,2.54250132]
[1641397470199,0.00107669,46526.0,46525.0,1.69250132]
[1641397470795,0.00107669,46526.0,46525.0,1.70350132]
[1641397471195,0.00081798,46526.0,46525.0,1.70350132]
[1641397471997,0.00081798,46526.0,46525.0,1.69250132]
[1641397472798,0.00081798,46526.0,46525.0,1.75450132]
[1641397473948,0.00081798,46526.0,46525.0,1.74250132]
[1641397474151,0.00081798,46526.0,46525.0,1.79250132]
[1641397474349,0.01257154,46529.0,46525.0,1.79250132]
[1641397474548,0.01257154,46529.0,46528.0,1.335]
[1641397474749,0.01257154,46529.0,46528.0,1.691227]
[1641397476349,0.107457,46533.0,46528.0,1.691227]
[1641397476649,0.107457,46533.0,46530.0,1.388727]
[1641397476850,0.107457,46533.0,46531.0,0.356227]
[1641397477393,0.01257141,46534.0,46531.0,0.356227]
[1641397477594,0.01257141,46534.0,46532.0,0.053727]
[1641397477795,0.01257141,46534.0,46533.0,0.356227]
[1641397478195,0.053729,46535.0,46533.0,0.356227]
[1641397478396,0.053727,46534.0,46533.0,0.356227]
[1641397478595,0.053727,46534.0,46532.0,0.053727]
[1641397478794,0.053727,46534.0,46533.0,0.051]
[1641397480196,0.053727,46534.0,46532.0,0.053727]
[1641397480845,0.107456,46534.0,46532.0,0.132727]
[1641397481945,0.107456,46534.0,46532.0,0.053727]
[1641397482545,0.107456,46534.0,46532.0,0.103727]
[1641397482746,0.107456,46534.0,46532.0,0.182727]
[1641397483345,0.107456,46534.0,46532.0,0.23645377]
[1641397483748,0.107456,46534.0,46533.0,0.356227]
[1641397484698,0.107456,46534.0,46533.0,0.435227]
[1641397484904,0.00107372,46535.0,46533.0,0.82741766]
[1641397485104,0.00107372,46535.0,46534.0,1.95519063]
[1641397485297,0.00107372,46535.0,46534.0,2.20319894]
[1641397485498,0.00107372,46535.0,46534.0,2.84787894]
[1641397485898,0.00107372,46535.0,46534.0,2.9368814]
[1641397486098,0.00107372,46535.0,46534.0,2.96595642]
[1641397486497,0.00107372,46535.0,46534.0,3.01595642]
[1641397486699,0.00107372,46535.0,46534.0,3.03495642]
[1641397487700,0.00107372,46535.0,46534.0,3.0350306]
[1641397487899,0.00107372,46535.0,46534.0,3.0160306]
[1641397488845,0.00107372,46535.0,46534.0,3.0340306]
[1641397489245,0.50384396,46549.0,46534.0,3.0340306]
[1641397489449,0.053712,46548.0,46534.0,3.0340306]
[1641397489648,0.053712,46548.0,46541.0,1.388712]
[1641397489845,0.053712,46548.0,46542.0,0.84458]
[1641397490047,0.053713,46546.0,46542.0,0.84458]
[1641397490247,0.28898696,46549.0,46543.0,0.356227]
[1641397490447,0.00107122,46546.0,46542.0,0.84458]
[1641397490647,0.00107122,46546.0,46543.0,0.356227]
[1641397490850,0.00107122,46546.0,46544.0,0.64455]
[1641397491047,0.00107122,46546.0,46545.0,0.356227]
[1641397491247,0.00107122,46546.0,46545.0,1.000767]
[1641397491846,0.05478522,46546.0,46545.0,1.000767]
[1641397492094,0.00107122,46546.0,46545.0,1.05448109]
[1641397492697,0.00107122,46546.0,46545.0,1.06548109]
[1641397493896,0.00107122,46546.0,46545.0,1.05448109]
[1641397494498,0.05371,46548.0,46545.0,1.05448109]
[1641397494696,0.05371,46548.0,46546.0,0.10741945]
[1641397494897,0.05371,46548.0,46547.0,0.356227]
[1641397495949,0.05371,46548.0,46547.0,0.556227]
[1641397496154,0.043706,46550.0,46548.0,0.053706]
[1641397496352,0.32687279,46554.0,46549.0,0.356227]
[1641397496557,0.107424,46551.0,46547.0,0.05370631]
[1641397496750,0.10730949,46551.0,46548.0,0.01]
[1641397497150,0.21472849,46551.0,46548.0,0.01]
[1641397497552,0.31240816,46550.0,46548.0,0.01]
[1641397497952,0.46612316,46550.0,46545.0,0.63897]
[1641397498153,0.46612316,46550.0,46546.0,0.10743101]
[1641397498351,0.053716,46549.0,46546.0,0.10743101]
[1641397498755,0.053716,46549.0,46546.0,0.12243101]
[1641397498951,0.107432,46549.0,46546.0,0.06871601]
[1641397500396,0.107432,46549.0,46546.0,0.05371601]
[1641397500797,0.107432,46549.0,46546.0,0.07271601]
[1641397501198,0.107432,46549.0,46546.0,0.12643101]
[1641397501999,0.107432,46549.0,46546.0,0.10743101]
[1641397502506,0.1,46547.0,46545.0,0.63897]
[1641397502805,0.1,46547.0,46545.0,0.209128]
[1641397502806,1.280394,46546.0,46545.0,0.209128]
[1641397503002,1.280394,46546.0,46540.0,0.01257092]
[1641397503003,0.23765058,46544.0,46540.0,0.01257092]
[1641397503202,1.17867191,46541.0,46540.0,0.01257092]
[1641397503449,1.72220435,46541.0,46540.0,0.01257092]
[1641397503648,1.82220435,46541.0,46540.0,0.01257092]
[1641397503847,1.82220435,46541.0,46532.0,0.05]
[1641397503848,0.29,46540.0,46532.0,0.05]
[1641397504056,0.10747523,46538.0,46532.0,0.05]
[1641397504250,0.324869,46537.0,46532.0,0.05]
[1641397504448,0.374869,46537.0,46532.0,0.05]
[1641397504650,0.23142943,46536.0,46532.0,0.05]
[1641397504848,0.271132,46535.0,46532.0,0.05]
[1641397505049,0.321132,46535.0,46532.0,0.05]
[1641397505449,0.421132,46535.0,46532.0,0.05]
[1641397505649,0.47487,46535.0,46532.0,0.05]
[1641397506851,0.47487,46535.0,46532.0,0.051]
[1641397508008,0.47487,46535.0,46532.0,0.05]
[1641397508410,0.47487,46535.0,46533.0,7.502e-05]
[1641397508811,0.42487,46535.0,46533.0,7.502e-05]
[1641397509213,0.00389269,46534.0,46533.0,7.502e-05]
[1641397509411,0.22517938,46534.0,46533.0,7.502e-05]
[1641397509710,0.49103986,46534.0,46533.0,7.502e-05]
[1641397509911,0.54233176,46534.0,46533.0,7.502e-05]
[1641397510112,0.64233176,46534.0,46533.0,7.502e-05]
[1641397510951,0.42647128,46534.0,46533.0,7.502e-05]
[1641397511149,0.42517938,46534.0,46533.0,7.502e-05]
[1641397511347,0.6443074,46534.0,46533.0,7.502e-05]
[1641397512952,0.42517938,46534.0,46533.0,7.502e-05]
[1641397513154,0.52192038,46534.0,46533.0,7.502e-05]
[1641397513353,0.52320234,46534.0,46533.0,7.502e-05]
[1641397513753,0.053747,46530.0,46525.0,0.05]
[1641397514053,0.75454861,46526.0,46525.0,0.05]
[1641397514256,1.01494261,46526.0,46525.0,0.05]
[1641397514451,1.2188353,46526.0,46525.0,0.05]
[1641397514699,1.23172799,46526.0,46525.0,0.052]
[1641397514899,1.18172799,46526.0,46525.0,0.052]
[1641397515900,0.81170595,46526.0,46525.0,0.052]
[1641397516099,0.80270595,46526.0,46525.0,0.05]
[1641397516500,0.54980386,46526.0,46525.0,0.05]
[1641397516700,0.44617938,46526.0,46525.0,0.05]
[1641397517101,0.22878538,46526.0,46525.0,0.05]
[1641397517500,0.29617938,46526.0,46525.0,0.05]
[1641397517900,0.07878538,46526.0,46525.0,0.05]
[1641397518102,0.00778538,46526.0,46525.0,0.05]
[1641397518855,0.00778538,46526.0,46525.0,0.06207492]
[1641397519461,0.00778538,46526.0,46525.0,1.39707492]
[1641397519652,0.00778538,46526.0,46525.0,1.75458492]
[1641397520051,0.00778538,46526.0,46525.0,1.74258492]
[1641397520452,8.538e-05,46526.0,46525.0,2.81258492]
[1641397520656,1.37885702,46542.0,46525.0,2.81258492]
[1641397520657,0.9504497,46542.0,46529.0,0.253715]
[1641397520854,0.107436,46538.0,46527.0,0.2]
[1641397521253,0.00124635,46544.0,46527.0,0.2]
[1641397521456,0.1249133,46538.0,46526.0,0.21738024]
[1641397521653,0.107463,46533.0,46528.0,0.053734]
[1641397521854,0.33698279,46529.0,46528.0,0.053734]
[1641397522103,0.33698279,46529.0,46525.0,0.69488492]
[1641397522301,0.05,46528.0,46525.0,0.69488492]
[1641397522498,0.103737,46528.0,46525.0,0.69488492]
[1641397522700,0.217394,46527.0,46525.0,0.71188492]
[1641397522899,0.053747,46527.0,46525.0,0.71188492]
[1641397523699,0.053747,46527.0,46525.0,0.28190392]
[1641397523999,0.267394,46526.0,46525.0,0.26490392]
[1641397524199,0.267394,46526.0,46514.0,0.24819587]
[1641397524402,0.20822587,46519.0,46517.0,0.053747]
[1641397524605,0.26197287,46519.0,46517.0,0.053747]
[1641397524903,0.26197287,46519.0,46514.0,0.015]
[1641397524904,0.04427159,46518.0,46514.0,0.015]
[1641397525103,0.30684875,46515.0,46514.0,0.015]
[1641397526149,0.053754,46511.0,46506.0,0.107507]
[1641397526350,0.053754,46511.0,46507.0,0.356227]
[1641397526749,0.053754,46511.0,46508.0,0.10750806]
[1641397526953,0.053754,46511.0,46509.0,0.356227]
[1641397527751,0.107507,46510.0,46509.0,0.356227]
[1641397527952,0.107507,46510.0,46509.0,0.463726]
[1641397528853,0.107507,46510.0,46509.0,0.548726]
[1641397529904,0.107507,46510.0,46509.0,0.54880755]
[1641397530707,0.107507,46510.0,46509.0,0.46380755]
[1641397530908,0.05375,46511.0,46509.0,0.75080755]
[1641397531106,0.05375,46511.0,46510.0,1.335]
[1641397531305,0.05375,46511.0,46510.0,1.691227]
[1641397532406,0.05375,46511.0,46510.0,0.556227]
[1641397532806,0.05375,46511.0,46510.0,0.624227]
[1641397533005,0.05375,46511.0,46510.0,0.424227]
[1641397534052,0.05375,46511.0,46510.0,0.356227]
[1641397534857,0.05349134,46511.0,46510.0,0.425227]
[1641397535255,0.05349134,46511.0,46510.0,0.069]
[1641397536058,0.05349134,46511.0,46509.0,0.10758055]
[1641397536859,0.05349134,46511.0,46509.0,0.18658055]
[1641397537100,0.05349134,46511.0,46510.0,0.356227]
[1641397538104,0.05349134,46511.0,46509.0,0.16133262]
[1641397538901,0.05349134,46511.0,46510.0,0.356227]
[1641397539503,0.05349134,46511.0,46509.0,0.22933262]
[1641397539504,0.10349134,46511.0,46509.0,0.22433262]
[1641397540106,0.10349134,46511.0,46509.0,0.15633262]
[1641397540307,0.19649134,46511.0,46509.0,8.155e-05]
[1641397540506,0.0012488,46510.0,46509.0,8.155e-05]
[1641397540705,0.0012488,46510.0,46501.0,0.42411]
[1641397540706,0.48,46509.0,46501.0,0.42411]
[1641397540952,0.053768,46506.0,46502.0,0.43009]
[1641397541153,0.13140889,46503.0,46502.0,0.43009]
[1641397541353,0.39858088,46503.0,46502.0,0.43009]
[1641397541555,0.49858088,46503.0,46502.0,0.43009]
[1641397542952,0.49858088,46503.0,46502.0,0.47809]
[1641397542953,0.50458088,46503.0,46502.0,0.47809]
[1641397544355,0.72463701,46503.0,46502.0,0.47809]
[1641397544606,0.72463701,46503.0,46502.0,0.43009]
[1641397544806,0.72463701,46503.0,46502.0,0.47909]
[1641397545001,0.50458088,46503.0,46502.0,0.47909]
[1641397546204,0.49858088,46503.0,46502.0,0.43009]
[1641397546704,0.72066237,46503.0,46502.0,0.43009]
[1641397546906,0.72666237,46503.0,46502.0,0.47709]
[1641397548351,0.50458088,46503.0,46502.0,0.47709]
[1641397548951,0.51158088,46503.0,46502.0,0.52509]
[1641397550154,0.49858088,46503.0,46502.0,0.43009]
[1641397550360,0.49858088,46503.0,46502.0,0.4302]
[1641397550361,0.49770088,46503.0,46502.0,0.4302]
[1641397550559,0.23052889,46503.0,46502.0,0.4302]
[1641397550754,0.13052889,46503.0,46502.0,0.4302]
[1641397550952,0.13052889,46503.0,46502.0,0.45228002]
[1641397552197,0.13052889,46503.0,46502.0,0.43028002]
[1641397552998,0.13552889,46503.0,46502.0,0.46328002]
[1641397554199,0.13052889,46503.0,46502.0,0.43028002]
[1641397555001,0.13752889,46503.0,46502.0,0.44328002]
[1641397555205,0.13752889,46503.0,46500.0,0.31372376]
[1641397555206,1.1,46502.0,46500.0,0.31372376]
[1641397555402,0.40223644,46503.0,46497.0,0.00011]
[1641397555403,1.507394,46499.0,46497.0,0.00011]
[1641397555604,1.53443096,46494.0,46491.0,0.00422]
[1641397555861,1.53443096,46494.0,46488.0,0.00011]
[1641397555862,0.217394,46490.0,46488.0,0.00011]
[1641397556057,0.59827371,46489.0,46488.0,0.00011]
[1641397556459,0.75207271,46489.0,46488.0,0.00011]
[1641397556860,0.76307271,46489.0,46488.0,0.00011]
[1641397557260,0.34914654,46486.0,46484.0,0.00033]
[1641397557460,0.26162161,46485.0,46484.0,0.00033]
[1641397557860,0.26162161,46485.0,46484.0,0.43059]
[1641397558961,0.27362161,46485.0,46484.0,0.43059]
[1641397560206,0.27362161,46485.0,46484.0,0.42559]
[1641397560207,0.99162161,46485.0,46484.0,0.42559]
[1641397560408,0.44,46483.0,46482.0,0.00033]
[1641397560608,0.360394,46483.0,46482.0,0.00033]
[1641397561006,0.371394,46483.0,46482.0,0.00033]
[1641397561209,0.671394,46483.0,46482.0,0.00033]
[1641397561406,0.371394,46483.0,46482.0,0.00041969]
[1641397561807,0.271394,46483.0,46482.0,0.00041969]
[1641397562012,0.371394,46483.0,46482.0,0.00041969]
[1641397562206,0.360394,46483.0,46482.0,0.00041969]
[1641397562407,0.59135046,46483.0,46482.0,0.00041969]
[1641397562807,0.260394,46483.0,46482.0,0.00041969]
[1641397563013,0.271394,46483.0,46482.0,0.00041969]
[1641397563654,0.271394,46483.0,46482.0,0.43068969]
[1641397563655,0.4952907,46483.0,46482.0,0.43068969]
[1641397563861,0.27261479,46483.0,46482.0,0.43057969]
[1641397564058,0.32261479,46483.0,46482.0,0.43057969]
[1641397564256,0.74161479,46483.0,46482.0,0.43057969]
[1641397564557,1.06883761,46483.0,46482.0,0.43057969]
[1641397564756,0.63883761,46483.0,46482.0,0.43057969]
[1641397565057,0.42261479,46483.0,46482.0,0.43057969]
[1641397565959,1.13084368,46483.0,46482.0,0.43057969]
[1641397566157,1.11984368,46483.0,46482.0,0.43057969]
[1641397566361,1.11984368,46483.0,46482.0,0.00013469]
[1641397566560,0.46161479,46483.0,46482.0,0.00013469]
[1641397567105,0.47261479,46483.0,46482.0,0.00013469]
[1641397567300,0.47261479,46483.0,46480.0,0.00292165]
[1641397567602,0.21567446,46482.0,46480.0,0.00292165]
[1641397567803,0.25867446,46482.0,46480.0,0.00292165]
[1641397568204,0.95567603,46482.0,46480.0,0.00292165]
[1641397568402,0.95567603,46482.0,46475.0,0.04729684]
[1641397568606,0.053792,46479.0,46475.0,0.04729684]
[1641397568908,0.21567446,46482.0,46475.0,0.04729684]
[1641397568909,0.029,46482.0,46475.0,0.24729684]
[1641397569505,0.04842812,46481.0,46475.0,0.24729684]
[1641397570605,0.053792,46478.0,46475.0,0.24729684]
[1641397571052,0.053792,46478.0,46475.0,0.47429684]
[1641397571455,0.053792,46478.0,46475.0,0.27429684]
[1641397571652,0.053792,46478.0,46475.0,0.227]
[1641397572252,0.053792,46478.0,46476.0,8.658e-05]
[1641397572653,0.05379,46481.0,46476.0,8.658e-05]
[1641397572853,0.68890681,46485.0,46476.0,8.658e-05]
[1641397572854,0.58132781,46485.0,46476.0,8.658e-05]
[1641397573053,0.58132781,46485.0,46477.0,0.2]
[1641397573653,0.053785,46483.0,46477.0,0.2]
[1641397573853,0.107569,46483.0,46480.0,0.107562]
[1641397574453,0.107569,46483.0,46476.0,8.658e-05]
[1641397574704,0.15115439,46479.0,46476.0,8.658e-05]
[1641397574906,0.053792,46478.0,46476.0,0.05387858]
[1641397575104,0.053792,46478.0,46476.0,0.07587858]
[1641397576207,0.053792,46478.0,46476.0,0.05387858]
[1641397577005,0.053792,46478.0,46476.0,0.07287858]
[1641397578005,0.053792,46478.0,46476.0,0.12666734]
[1641397578206,0.161371,46482.0,46477.0,0.356681]
[1641397578207,0.053787,46481.0,46477.0,0.356681]
[1641397578456,0.053787,46481.0,46476.0,0.10766734]
[1641397578457,0.58132781,46487.0,46479.0,0.2]
[1641397579054,0.58132781,46487.0,46480.0,0.20048156]
[1641397579257,0.86224275,46489.0,46482.0,0.45730712]
[1641397579456,0.053783,46484.0,46482.0,0.51108958]
[1641397580255,0.053783,46484.0,46482.0,0.56487258]
[1641397580456,0.05378,46488.0,46485.0,0.05377773]
[1641397581056,0.05378,46488.0,46485.0,0.06177773]
[1641397581960,0.053781,46487.0,46485.0,0.06177773]
[1641397582203,0.053781,46487.0,46485.0,0.10755773]
[1641397582604,0.053781,46487.0,46485.0,0.05377773]
[1641397582804,0.053781,46487.0,46486.0,7.859e-05]
[1641397585005,0.053781,46487.0,46486.0,0.01007859]
[1641397586056,0.269386,46487.0,46486.0,0.01007859]
[1641397586257,0.269386,46487.0,46486.0,7.859e-05]
[1641397587055,0.269386,46487.0,46486.0,0.00907859]
[1641397588258,0.269386,46487.0,46486.0,7.859e-05]
[1641397588458,0.053781,46487.0,46486.0,7.859e-05]
[1641397589157,0.053781,46487.0,46486.0,0.01007859]
[1641397590310,0.053781,46487.0,46486.0,0.22007859]
[1641397591112,0.053781,46487.0,46486.0,0.23007859]
[1641397592211,0.053781,46487.0,46486.0,0.22007859]
[1641397592812,0.053781,46487.0,46486.0,0.21507859]
[1641397593012,0.053781,46487.0,46486.0,0.22507859]
[1641397593455,0.053781,46487.0,46486.0,0.22514961]
[1641397593956,0.05206161,46487.0,46486.0,0.22514961]
[1641397594357,0.05206161,46487.0,46486.0,0.21514961]
[1641397595059,0.05206161,46487.0,46486.0,0.22114961]
[1641397595858,0.26766661,46487.0,46486.0,0.22114961]
[1641397596857,0.26766661,46487.0,46486.0,0.21514961]
[1641397597105,0.26766661,46487.0,46486.0,0.21914961]